bitfinex/quotes_SOLUSD_20251019
["timestamp","ask_amount","ask_price","bid_price","bid_amount"]
[1760873022088,34.46647521,189.58,189.56,1.99999999]
[1760873022790,34.46647521,189.58,189.57,1.99999999]
[1760873023099,33.75647521,189.58,189.57,1.99999999]
[1760873026183,33.75647521,189.58,189.56,1.99999999]
[1760873028802,33.75647521,189.58,189.57,1.99999999]
[1760873030587,33.75647521,189.58,189.57,2.64999999]
[1760873031689,33.75647521,189.59,189.58,1.99999999]
[1760873034308,34.43647521,189.59,189.58,1.99999999]
[1760873034502,34.43647521,189.59,189.57,1.99999999]
[1760873034808,34.43647521,189.59,189.58,1.99999999]
[1760873036006,33.75647521,189.59,189.58,1.99999999]
[1760873036207,34.43647521,189.59,189.58,1.99999999]
[1760873036710,33.75647521,189.59,189.58,1.99999999]
[1760873041405,34.43647521,189.59,189.57,1.99999999]
[1760873041599,33.75647521,189.59,189.56,1.99999999]
[1760873041905,10.87647521,189.57,189.56,1.99999999]
[1760873042106,33.75647521,189.55,189.54,29.31999999]
[1760873042300,22.88,189.55,189.54,30.03999999]
[1760873044301,22.88,189.55,189.54,2.19999999]
[1760873045392,22.88,189.55,189.54,0.2]
[1760873045587,34.43647521,189.55,189.54,0.2]
[1760873046001,11.55647521,189.55,189.54,2.19999999]
[1760873046198,10.87647521,189.55,189.54,2.19999999]
[1760873046611,10.87647521,189.55,189.54,2.91999999]
[1760873046807,0.68,189.61,189.56,1.99999999]
[1760873047113,10.87647521,189.57,189.56,1.99999999]
[1760873047315,0.68,189.59,189.56,1.99999999]
[1760873047493,10.87647521,189.58,189.57,1.99999999]
[1760873047694,33.75647521,189.58,189.57,1.99999999]
[1760873047889,10.87647521,189.57,189.56,1.99999999]
[1760873048111,33.75647521,189.57,189.56,2.71999999]
[1760873048314,33.75647521,189.57,189.56,1.99999999]
[1760873048497,33.75647521,189.57,189.54,1.80999999]
[1760873048498,34.43647521,189.57,189.54,1.80999999]
[1760873048814,11.46647521,189.56,189.54,0.2]
[1760873049202,10.87647521,189.56,189.54,0.2]
[1760873050416,2.11589833,189.59,189.54,0.2]
[1760873050417,10.87647521,189.55,189.54,0.92]
[1760873050722,10.87647521,189.55,189.54,1.80999999]
[1760873051023,33.75647521,189.55,189.54,2.50999999]
[1760873051206,22.88,189.55,189.54,2.50999999]
[1760873058321,22.88,189.55,189.54,1.80999999]
[1760873059908,33.75647521,189.55,189.54,1.80999999]
[1760873060126,33.75647521,189.55,189.54,0.2]
[1760873060823,33.75647521,189.55,189.54,1.80999999]
[1760873061206,2.11578641,189.61,189.54,2.50999999]
[1760873061410,33.75647521,189.57,189.56,1.60999999]
[1760873061610,10.87647521,189.56,189.55,1.60999999]
[1760873062023,33.75647521,189.56,189.55,2.30999999]
[1760873062328,22.88,189.56,189.55,2.30999999]
[1760873062713,22.88,189.57,189.56,1.60999999]
[1760873062921,10.87647521,189.6,189.59,1.60999999]
[1760873063820,33.75647521,189.62,189.59,2.30999999]
[1760873064221,33.75647521,189.62,189.6,1.60999999]
[1760873065831,34.34647521,189.62,189.58,1.60999999]
[1760873066135,10.87647521,189.6,189.58,1.60999999]
[1760873067830,33.75647521,189.58,189.57,1.60999999]
[1760873068023,10.87647521,189.57,189.56,1.60999999]
[1760873068224,33.75647521,189.65,189.56,1.60999999]
[1760873068536,33.75647521,189.57,189.56,1.60999999]
[1760873071924,0.59,189.63,189.6,1.60999999]
[1760873072123,10.87647521,189.62,189.58,0.7]
[1760873072428,10.87647521,189.62,189.61,1.60999999]
[1760873072823,10.87647521,189.64,189.61,1.60999999]
[1760873073318,0.59,189.63,189.61,1.60999999]
[1760873073524,34.34647521,189.65,189.61,1.60999999]
[1760873073724,0.59,189.64,189.61,1.60999999]
[1760873074244,33.75647521,189.65,189.61,1.60999999]
[1760873074437,34.34647521,189.65,189.61,1.60999999]
[1760873074638,34.34647521,189.65,189.62,1.60999999]
[1760873076941,33.75647521,189.65,189.62,1.60999999]
[1760873077250,33.75647521,189.65,189.64,1.60999999]
[1760873078547,10.87647521,189.69,189.66,1.60999999]
[1760873078733,22.88,189.67,189.66,1.60999999]
[1760873081154,33.75647521,189.66,189.65,1.60999999]
[1760873081449,33.75647521,189.66,189.65,2.30999999]
[1760873083445,22.88,189.66,189.65,2.30999999]
[1760873092143,22.88,189.66,189.65,1.60999999]
[1760873092661,22.88,189.66,189.65,2.29999999]
[1760873094770,34.34647521,189.66,189.65,1.60999999]
[1760873094959,10.87647521,189.65,189.64,1.60999999]
[1760873095265,10.87647521,189.65,189.61,61.4]
[1760873095266,11.46647521,189.65,189.63,1.60999999]
[1760873095646,11.46647521,189.65,189.61,61.4]
[1760873095647,11.46647521,189.65,189.64,1.60999999]
[1760873096162,10.87647521,189.65,189.64,1.60999999]
[1760873096462,33.75647521,189.66,189.64,1.60999999]
[1760873096765,0.59,189.65,189.64,1.60999999]
[1760873097846,33.75647521,189.66,189.64,1.60999999]
[1760873098047,34.34647521,189.66,189.64,1.60999999]
[1760873098881,0.59,189.65,189.64,1.60999999]
[1760873099045,33.75647521,189.66,189.64,1.60999999]
[1760873099251,34.34647521,189.66,189.64,1.60999999]
[1760873099864,0.59,189.65,189.63,1.60999999]
[1760873100063,33.75647521,189.66,189.63,1.60999999]
[1760873100064,0.59,189.64,189.63,1.60999999]
[1760873100369,34.34647521,189.66,189.63,1.60999999]
[1760873100561,0.59,189.65,189.63,1.60999999]
[1760873101045,33.75647521,189.66,189.63,1.60999999]
[1760873101246,22.88,189.62,189.61,1.60999999]
[1760873101472,33.75647521,189.62,189.61,1.60999999]
[1760873102045,33.75647521,189.62,189.61,2.29999999]
[1760873102564,33.75647521,189.62,189.61,1.60999999]
[1760873102971,33.75647521,189.62,189.61,2.29999999]
[1760873103470,33.75647521,189.62,189.61,1.60999999]
[1760873105059,10.87647521,189.61,189.6,1.60999999]
[1760873105260,33.75647521,189.59,189.58,1.60999999]
[1760873107166,0.59,189.61,189.57,1.60999999]
[1760873107167,10.87647521,189.58,189.57,1.60999999]
[1760873107344,22.88,189.58,189.57,1.60999999]
[1760873107550,33.75647521,189.58,189.57,1.60999999]
[1760873108856,33.75647521,189.58,189.57,2.29999999]
[1760873109562,10.87647521,189.63,189.61,1.60999999]
[1760873109750,10.87647521,189.63,189.62,1.60999999]
[1760873110151,10.87647521,189.65,189.63,1.60999999]
[1760873110962,10.87647521,189.65,189.64,1.60999999]
[1760873111158,11.46647521,189.67,189.64,1.60999999]
[1760873111365,0.59,189.67,189.65,1.60999999]
[1760873111573,33.75647521,189.66,189.65,1.60999999]
[1760873112374,10.87647521,189.66,189.65,2.26999999]
[1760873112582,10.87647521,189.65,189.64,2.26999999]
[1760873113582,10.87647521,189.65,189.64,1.60999999]
[1760873115477,10.87647521,189.66,189.64,1.60999999]
[1760873115973,10.87647521,189.66,189.65,0.68]
[1760873116176,10.87647521,189.66,189.64,1.60999999]
[1760873116376,10.87647521,189.66,189.65,1.60999999]
[1760873117067,10.87647521,189.66,189.65,2.28999999]
[1760873117270,10.87647521,189.69,189.65,2.28999999]
[1760873117472,10.87647521,189.69,189.67,1.60999999]
[1760873117673,11.46647521,189.69,189.67,1.60999999]
[1760873117965,33.75647521,189.67,189.66,1.60999999]
[1760873118268,10.87647521,189.66,189.65,1.60999999]
[1760873121498,22.88,189.67,189.65,1.60999999]
[1760873121499,33.75647521,189.67,189.66,1.60999999]
[1760873121663,33.75647521,189.67,189.66,2.28999999]
[1760873123872,33.75647521,189.67,189.66,1.60999999]
[1760873124480,10.87647521,189.66,189.65,1.60999999]
[1760873124676,33.75647521,189.66,189.65,1.60999999]
[1760873127306,33.75647521,189.66,189.65,2.28999999]
[1760873128177,33.75647521,189.66,189.65,1.60999999]
[1760873130678,33.75647521,189.66,189.65,2.28999999]
[1760873131370,22.88,189.67,189.65,2.28999999]
[1760873131574,10.87647521,189.66,189.65,2.28999999]
[1760873134382,10.87647521,189.66,189.65,1.60999999]
[1760873134771,33.75647521,189.66,189.65,1.60999999]
[1760873135275,34.34647521,189.66,189.6,1.60999999]
[1760873135476,10.87647521,189.57,189.56,1.60999999]
[1760873135704,22.88,189.55,189.54,0.88]
[1760873135894,33.75647521,189.55,189.54,0.88]
[1760873136090,33.75647521,189.55,189.54,0.2]
[1760873136487,34.34647521,189.55,189.54,0.2]
[1760873137003,33.75647521,189.55,189.54,0.2]
[1760873138330,34.34647521,189.55,189.54,0.2]
[1760873144206,33.75647521,189.52,189.51,0.2]
[1760873144609,34.34647521,189.52,189.51,0.2]
[1760873145010,36.46360543,189.52,189.51,0.2]
[1760873147608,22.88,189.48,189.46,0.2]
[1760873147800,10.87647521,189.47,189.46,0.2]
[1760873148010,11.46647521,189.47,189.46,0.2]
[1760873148402,13.58382957,189.47,189.46,0.2]
[1760873149989,16.34491,189.47,189.46,0.2]
[1760873150612,15.75491,189.47,189.46,0.2]
[1760873150798,16.34491,189.47,189.46,0.2]
[1760873151707,15.75491,189.47,189.46,0.2]
[1760873152019,16.34491,189.47,189.46,0.2]
[1760873152603,15.75491,189.47,189.46,0.2]
[1760873156017,15.75491,189.47,189.46,0.86]
[1760873156214,15.75491,189.47,189.46,0.2]
[1760873158207,15.75491,189.47,189.46,0.86]
[1760873158400,15.75491,189.47,189.46,0.2]
[1760873161604,15.75491,189.47,189.46,0.86]
[1760873162000,15.75491,189.47,189.46,0.2]
[1760873162927,15.75491,189.47,189.46,0.86]
[1760873163113,13.63755564,189.47,189.46,0.86]
[1760873163827,15.84819484,189.58,189.47,1.60999999]
[1760873164001,15.84819484,189.58,189.5,1.60999999]
[1760873164002,2.1164581,189.52,189.5,1.60999999]
[1760873164206,22.88,189.54,189.51,0.66]
[1760873164407,2.1164581,189.53,189.51,0.66]
[1760873164600,4.87628335,189.53,189.51,0.66]
[1760873164802,4.87628335,189.53,189.52,0.66]
[1760873165029,2.75982525,189.53,189.52,0.66]
[1760873165618,13.63630046,189.53,189.52,0.66]
[1760873165810,10.87647521,189.53,189.52,2.26999999]
[1760873167630,10.87647521,189.53,189.52,0.66]
[1760873168307,10.87647521,189.53,189.52,2.26999999]
[1760873169532,10.87647521,189.53,189.52,0.66]
[1760873170516,10.87647521,189.53,189.48,0.67]
[1760873170517,33.75647521,189.49,189.48,0.67]
[1760873170920,33.75647521,189.49,189.48,2.27999999]
[1760873171830,22.88,189.54,189.48,2.27999999]
[1760873172139,33.75647521,189.51,189.5,1.60999999]
[1760873172343,10.87647521,189.51,189.5,0.67]
[1760873172543,10.87647521,189.51,189.5,2.27999999]
[1760873173425,10.87647521,189.51,189.5,0.67]
[1760873173617,10.87647521,189.5,189.49,1.60999999]
[1760873173816,10.87647521,189.5,189.49,2.26999999]
[1760873174415,33.75647521,189.5,189.49,0.66]
[1760873175013,33.75647521,189.5,189.49,2.26999999]
[1760873175214,33.75647521,189.5,189.49,0.66]
[1760873177831,10.87647521,189.49,189.47,1.60999999]
[1760873178355,33.75647521,189.47,189.46,0.2]
[1760873178830,34.42647521,189.47,189.46,0.2]
[1760873189340,34.42647521,189.47,189.43,0.2]
[1760873189540,33.75647521,189.47,189.43,0.2]
[1760873189720,10.87647521,189.45,189.43,0.2]
[1760873191048,10.87647521,189.45,189.43,0.86]
[1760873191750,33.75647521,189.45,189.43,0.86]
[1760873193437,33.75647521,189.45,189.43,0.2]
[1760873195147,10.87647521,189.43,189.42,0.2]
[1760873195335,33.75647521,189.43,189.42,0.2]
[1760873195543,34.42647521,189.43,189.42,0.2]
[1760873196254,37.18792624,189.43,189.42,0.2]
[1760873196549,10.87647521,189.42,189.41,0.2]
[1760873196756,33.75647521,189.4,189.39,0.2]
[1760873197240,10.87647521,189.39,189.38,0.2]
[1760873197452,33.75647521,189.36,189.3,1.60999999]
[1760873197645,10.87647521,189.31,189.29,0.66]
[1760873197951,33.75647521,189.32,189.29,2.26999999]
[1760873198146,33.75647521,189.32,189.29,0.66]
[1760873198374,34.42647521,189.32,189.28,0.1]
[1760873198554,0.67,189.31,189.28,0.1]
[1760873199452,38.96397979,189.32,189.28,0.1]
[1760873199637,33.75647521,189.32,189.29,0.66]
[1760873199953,33.75647521,189.32,189.3,1.60999999]
[1760873200262,33.75647521,189.32,189.31,2.26999999]
[1760873201340,10.87647521,189.35,189.33,1.60999999]
[1760873201544,10.87647521,189.35,189.34,0.66]
[1760873203349,10.87647521,189.35,189.34,2.9e-07]
[1760873208741,11.52647521,189.35,189.29,0.66]
[1760873208962,10.87647521,189.31,189.29,0.66]
[1760873209167,10.87647521,189.31,189.28,0.1]
[1760873209347,33.75647521,189.29,189.28,0.1]
[1760873210866,33.75647521,189.29,189.28,0.76]
[1760873214552,10.87647521,189.28,189.27,0.1]
[1760873215355,33.75647521,189.31,189.27,0.1]
[1760873215767,33.75647521,189.31,189.27,0.76]
[1760873216072,34.40647521,189.31,189.27,0.1]
[1760873216683,34.40647521,189.31,189.27,0.76]
[1760873216977,34.40647521,189.31,189.27,0.1]
[1760873217152,10.87647521,189.29,189.27,0.1]
[1760873218054,10.87647521,189.31,189.27,0.1]
[1760873218255,11.52647521,189.31,189.27,0.76]
[1760873218460,11.52647521,189.31,189.27,0.1]
[1760873219960,10.87647521,189.31,189.28,0.66]
[1760873220269,10.87647521,189.31,189.29,0.66]
[1760873221269,10.87647521,189.31,189.27,0.1]
[1760873221568,10.87647521,189.31,189.28,0.66]
[1760873221988,22.88,189.31,189.28,0.66]
[1760873222284,22.88,189.3,189.27,0.1]
[1760873222459,10.87647521,189.29,189.27,0.1]
[1760873222665,11.52647521,189.29,189.27,0.1]
[1760873222865,0.65,189.3,189.27,0.1]
[1760873223072,11.52647521,189.29,189.27,0.1]
[1760873225986,10.87647521,189.28,189.27,0.1]
[1760873227575,10.87647521,189.32,189.27,0.1]
[1760873227782,22.88,189.28,189.27,0.1]
[1760873228294,10.87647521,189.27,189.11,2.0]
[1760873228474,0.65,189.26,189.14,0.66]
[1760873228677,22.88,189.21,189.14,0.66]
[1760873228982,22.88,189.21,189.15,0.52868094]
[1760873229168,22.88,189.21,189.16,0.66]
[1760873229369,22.88,189.23,189.17,0.52862504]
[1760873229570,22.88,189.23,189.18,0.66]
[1760873229874,22.88,189.23,189.19,1.24856916]
[1760873230088,22.88,189.24,189.19,1.24856916]
[1760873230290,22.88,189.22,189.2,0.72]
[1760873230790,22.88,189.22,189.19,0.72]
[1760873231369,22.88,189.22,189.17,0.72]
[1760873231570,22.88,189.22,189.18,0.72]
[1760873231784,22.88,189.22,189.19,0.72]
[1760873232090,22.88,189.22,189.17,0.72]
[1760873232285,22.88,189.22,189.18,0.72]
[1760873233092,22.88,189.22,189.16,0.52865299]
[1760873233403,22.88,189.22,189.17,0.72]
[1760873233570,22.88,189.22,189.18,1.2485971]
[1760873233982,23.6,189.22,189.18,1.2485971]
[1760873234178,6.50500499,189.31,189.19,0.66]
[1760873234380,10.87647521,189.3,189.2,0.52854122]
[1760873234585,0.72,189.31,189.21,27.66]
[1760873234773,10.87647521,189.32,189.22,1.18848536]
[1760873234983,10.87647521,189.32,189.23,0.66]
[1760873235270,22.88,189.28,189.24,0.5284295]
[1760873235471,22.88,189.28,189.25,0.66]
[1760873235692,22.88,189.28,189.26,0.52837366]
[1760873235887,0.72,189.27,189.21,0.66]
[1760873236293,0.72,189.27,189.22,0.52848536]
[1760873236591,0.72,189.27,189.22,1.18848536]
[1760873238692,0.72,189.27,189.22,0.66]
[1760873239195,22.88,189.28,189.2,0.52854122]
[1760873239494,23.6,189.28,189.21,0.66]
[1760873239695,23.6,189.28,189.22,0.52848536]
[1760873241198,23.6,189.28,189.22,1.18848536]
[1760873241387,22.88,189.28,189.22,1.18848536]
[1760873241588,22.88,189.28,189.23,0.66]
[1760873241796,22.88,189.28,189.24,0.5284295]
[1760873241993,22.88,189.28,189.25,0.66]
[1760873242195,22.88,189.28,189.26,0.66]
[1760873243081,22.88,189.28,189.24,0.5284295]
[1760873243281,22.88,189.28,189.24,0.66]
[1760873243587,23.6,189.28,189.24,0.66]
[1760873244098,23.6,189.28,189.22,0.8128085]
[1760873244099,22.88,189.28,189.22,0.8128085]
[1760873244289,22.88,189.28,189.25,0.66]
[1760873245200,0.72,189.32,189.26,0.66]
[1760873245701,22.88,189.31,189.27,0.52834574]
[1760873245910,22.88,189.31,189.27,1.47266888]
[1760873246087,22.88,189.31,189.28,0.66]
[1760873247104,22.88,189.31,189.27,0.81266888]
[1760873247304,22.88,189.31,189.27,1.47266888]
[1760873248102,23.6,189.31,189.27,1.47266888]
[1760873248407,23.6,189.31,189.27,0.81266888]
[1760873248908,23.6,189.31,189.27,28.47266888]
[1760873249988,0.72,189.3,189.27,0.28432314]
[1760873250194,0.72,189.3,189.26,88.4]
[1760873250388,0.72,189.29,189.27,0.28432314]
[1760873250599,0.72,189.28,189.27,0.28432314]
[1760873251405,0.72,189.28,189.25,61.4]
[1760873251600,0.72,189.27,189.25,61.4]
[1760873251795,0.72,189.26,189.24,27.0]
[1760873252000,0.72,189.25,189.24,27.0]
[1760873252310,0.72,189.25,189.24,27.28432314]
[1760873252510,0.72,189.25,189.24,0.28432314]
[1760873253495,0.72,189.25,189.22,27.0]
[1760873253696,0.72,189.24,189.22,27.0]
[1760873253906,0.72,189.23,189.22,27.0]
[1760873254206,0.72,189.25,189.22,27.0]
[1760873254404,23.6,189.27,189.23,0.28432314]
[1760873254598,0.72,189.26,189.23,0.28432314]
[1760873254800,0.72,189.25,189.23,0.28432314]
[1760873255790,0.5,189.24,189.23,0.28432314]
[1760873257402,0.5,189.24,189.2,1.47286436]
[1760873257712,0.5,189.24,189.21,27.94432314]
[1760873257900,0.5,189.24,189.21,0.28432314]
[1760873258100,0.5,189.24,189.23,0.28432314]
[1760873258309,1.22,189.24,189.23,0.28432314]
[1760873258490,0.5,189.24,189.23,0.28432314]
[1760873259206,0.5,189.24,189.23,27.94432314]
[1760873259412,0.5,189.24,189.23,0.94432314]
[1760873259613,0.5,189.24,189.23,27.94432314]
[1760873262715,0.5,189.24,189.23,27.28432314]
[1760873263803,0.5,189.24,189.23,28.00432314]
[1760873265116,0.2158,189.24,189.23,89.40432314]
[1760873265412,0.2158,189.24,189.23,89.93278057]
[1760873265905,0.66,189.32,189.24,0.28432314]
[1760873266101,0.66,189.32,189.25,1.24840158]
[1760873266102,23.54,189.32,189.25,1.24840158]
[1760873266323,0.66,189.31,189.27,0.28432314]
[1760873266514,0.66,189.3,189.28,0.52831783]
[1760873266715,0.66,189.3,189.29,27.26432314]
[1760873267115,0.66,189.3,189.29,0.28432314]
[1760873267319,0.66,189.3,189.29,27.26432314]
[1760873267615,0.66,189.3,189.29,26.98]
[1760873267815,0.66,189.3,189.29,27.26432314]
[1760873268033,0.66,189.3,189.23,61.92845743]
[1760873268034,0.66,189.3,189.26,26.98]
[1760873268232,0.66,189.29,189.27,0.14216157]
[1760873268525,0.66,189.29,189.27,0.28432314]
[1760873269927,0.66,189.29,189.21,26.98]
[1760873270227,22.88,189.26,189.21,26.98]
[1760873270424,0.66,189.25,189.21,26.98]
[1760873270624,0.66,189.24,189.21,26.98]
[1760873270800,22.88,189.22,189.21,26.98]
[1760873271005,23.54,189.22,189.21,27.26432314]
[1760873271221,23.54,189.22,189.21,26.98]
[1760873271401,23.54,189.22,189.21,27.26432314]
[1760873271831,23.54,189.22,189.13,0.52873684]
[1760873272006,23.54,189.22,189.14,0.72]
[1760873272204,0.66,189.21,189.14,0.72]
[1760873272713,0.66,189.21,189.16,0.28432314]
[1760873272928,0.66,189.21,189.15,26.98]
[1760873273128,0.66,189.2,189.15,26.98]
[1760873273324,0.66,189.19,189.16,0.28432314]
[1760873273628,22.88,189.22,189.16,0.28432314]
[1760873273929,0.66,189.18,189.16,0.28432314]
[1760873274225,0.66,189.17,189.16,0.28432314]
[1760873274425,0.66,189.17,189.1,0.72]
[1760873274617,0.66,189.17,189.11,26.98]
[1760873274929,0.66,189.16,189.1,0.72]
[1760873275109,0.66,189.16,189.11,26.98]
[1760873275429,0.66,189.16,189.12,0.72]
[1760873275730,0.66,189.16,189.1,1.24882072]
[1760873276039,0.66,189.16,189.11,26.98]
[1760873276220,0.66,189.16,189.12,0.14216157]
[1760873276407,0.66,189.16,189.12,0.28432314]
[1760873277438,0.66,189.15,189.12,0.28432314]
[1760873278106,22.88,189.14,189.12,0.28432314]
[1760873278308,22.88,189.14,189.12,0.14216157]
[1760873278510,0.66,189.13,189.1,0.14216157]
[1760873278813,22.88,189.14,189.1,0.72]
[1760873279134,0.66,189.13,189.1,0.14216157]
[1760873280122,22.88,189.11,189.1,0.28432314]
[1760873280534,23.54,189.19,189.1,28.51314386]
[1760873280717,0.66,189.18,189.12,0.28432314]
[1760873280913,22.88,189.14,189.11,0.28432314]
[1760873281119,0.66,189.13,189.11,0.28432314]
[1760873281825,22.88,189.14,189.11,0.28432314]
[1760873282026,0.66,189.12,189.09,27.08]
[1760873282229,22.88,189.1,189.09,27.08]
[1760873282428,23.54,189.1,189.09,0.1]
[1760873283015,34.41647521,189.1,189.09,0.1]
[1760873284332,34.91647521,189.1,189.09,0.1]
[1760873286339,1.16,189.1,189.09,0.1]
[1760873287739,12.03647521,189.1,189.09,0.1]
[1760873289246,24.04,189.1,189.09,0.1]
[1760873289735,23.38,189.1,189.09,0.1]
[1760873292042,34.97647521,189.1,189.09,0.1]
[1760873295654,0.5,189.1,189.09,0.1]
[1760873295825,2.12060967,189.17,189.09,0.1]
[1760873295826,5.00921276,189.18,189.09,1.09432314]
[1760873296146,2.76556645,189.25,189.1,0.54]
[1760873296344,0.72,189.23,189.11,0.52879276]
[1760873296644,0.72,189.23,189.12,0.54]
[1760873296850,22.88,189.19,189.18,0.14216157]
[1760873297054,23.6,189.19,189.18,0.14216157]
[1760873297349,0.72,189.19,189.18,0.14216157]
[1760873297531,23.6,189.19,189.18,0.14216157]
[1760873297729,18.577888,189.26,189.18,0.14216157]
[1760873297730,10.87647521,189.2,189.18,0.14216157]
[1760873297966,11.59647521,189.2,189.18,0.14216157]
[1760873298521,22.88,189.19,189.18,0.14216157]
[1760873299145,10.87647521,189.22,189.16,0.54]
[1760873299454,22.88,189.19,189.14,0.81303203]
[1760873299623,22.88,189.19,189.14,1.35303203]
[1760873299822,22.88,189.19,189.15,0.54]
[1760873300643,22.88,189.19,189.15,0.68216157]
[1760873300936,0.72,189.18,189.15,0.14216157]
[1760873301140,0.72,189.17,189.15,0.14216157]
[1760873301621,23.6,189.19,189.15,0.14216157]
[1760873301846,0.72,189.18,189.15,0.14216157]
[1760873302037,0.72,189.17,189.15,0.14216157]
[1760873302947,0.72,189.16,189.09,61.5]
[1760873303148,23.6,189.15,189.1,0.52882072]
[1760873303352,0.72,189.14,189.11,0.28432314]
[1760873304253,22.88,189.15,189.11,0.28432314]
[1760873304436,23.6,189.15,189.11,0.28432314]
[1760873304639,0.72,189.14,189.11,0.28432314]
[1760873304950,22.88,189.15,189.11,0.28432314]
[1760873305445,22.88,189.15,189.11,0.82432314]
[1760873305968,22.88,189.18,189.12,1.0687648]
[1760873306141,22.88,189.18,189.13,27.28432314]
[1760873306459,23.6,189.18,189.13,27.28432314]
[1760873306752,0.72,189.17,189.13,27.28432314]
[1760873307448,0.72,189.16,189.13,27.28432314]
[1760873307656,22.88,189.18,189.13,27.28432314]
[1760873307840,23.6,189.18,189.13,27.82432314]
[1760873308851,22.88,189.18,189.13,27.82432314]
[1760873309057,22.88,189.18,189.14,1.06870889]
[1760873309353,10.87647521,189.25,189.15,0.82432314]
[1760873309544,23.6,189.22,189.16,0.52865299]
[1760873309752,0.72,189.22,189.16,0.52865299]
[1760873309947,23.6,189.22,189.16,0.52865299]
[1760873310336,0.72,189.22,189.16,0.52865299]
[1760873310533,23.6,189.22,189.16,0.52865299]
[1760873310734,22.88,189.22,189.17,0.54]
[1760873310948,11.59647521,189.25,189.18,27.81292024]
[1760873310949,0.72,189.25,189.18,27.81292024]
[1760873311163,22.88,189.23,189.18,28.35292024]
[1760873311359,23.6,189.23,189.18,28.35292024]
[1760873312040,22.88,189.23,189.19,0.54]
[1760873312359,0.72,189.25,189.2,0.28432314]
[1760873312569,22.88,189.23,189.2,0.28432314]
[1760873313153,22.88,189.25,189.2,0.28432314]
[1760873313352,22.88,189.23,189.2,0.28432314]
[1760873313558,23.6,189.23,189.2,0.28432314]
[1760873313956,22.88,189.25,189.2,0.28432314]
[1760873314147,22.88,189.23,189.2,0.28432314]
[1760873314543,23.6,189.23,189.2,0.28432314]
[1760873314748,22.88,189.23,189.2,0.28432314]
[1760873315057,22.88,189.23,189.2,0.81286436]
[1760873315262,22.88,189.24,189.2,1.35286436]
[1760873315660,22.88,189.24,189.21,0.54]
[1760873315849,0.72,189.27,189.23,0.28432314]
[1760873316067,0.72,189.29,189.24,0.5284295]
[1760873316262,10.87647521,189.36,189.25,0.28432314]
[1760873316263,4.94557409,189.28,189.25,0.28432314]
[1760873316461,10.87647521,189.34,189.27,0.28432314]
[1760873316659,22.88,189.31,189.27,0.28432314]
[1760873316961,0.72,189.33,189.27,0.28432314]
[1760873317161,22.88,189.31,189.27,0.28432314]
[1760873317360,0.72,189.3,189.27,0.28432314]
[1760873317679,0.72,189.3,189.29,0.28432314]
[1760873317870,22.88,189.31,189.29,0.28432314]
[1760873318490,0.72,189.3,189.29,0.28432314]
[1760873322177,0.72,189.3,189.22,0.54]
[1760873322356,22.88,189.29,189.23,0.28432314]
[1760873322560,0.72,189.28,189.23,27.26432314]
[1760873322780,0.72,189.27,189.23,27.26432314]
[1760873324083,0.72,189.27,189.23,0.28432314]
[1760873324285,0.72,189.27,189.22,61.4]
[1760873324286,0.72,189.27,189.25,0.28432314]
[1760873324587,0.72,189.27,189.26,27.26432314]
[1760873324764,10.87647521,189.32,189.26,26.98]
[1760873324965,10.87647521,189.28,189.27,0.28432314]
[1760873325171,33.75647521,189.3,189.27,0.28432314]
[1760873325483,0.69,189.29,189.27,0.28432314]
[1760873325779,0.69,189.28,189.27,0.28432314]
[1760873328690,0.69,189.28,189.27,27.26432314]
[1760873329177,0.69,189.28,189.27,0.28432314]
[1760873330776,0.69,189.28,189.16,2.0]